Workbook

Sheet Motocicletas
A1: Proveedor | B1: Segmento | C1: Celda de Cilindraje /depósito de carga | D1: Intervalo de precios | E1: Marca | F1: Código Fasecolda | G1: Referencia 1 | H1: Referencia 2 | I1: Referencia 3 | J1: Precio referencia (2019) | K1: 1 | L1: Precio final de 1 und | M1: 2 a 10 | N1: Precio final de 2 a 10 und | O1: 11 a 20 | P1: Precio final de 11 a 20 und | Q1: 21 a 30 | R1: Precio final de 21 a 30 und | S1: 31 a 40 | T1: Precio final de 31 a 40 und | U1: Mayor a 40 | V1: Precio final de mayor a 40 und | W1: Precio del Mantenimiento Preventivo | X1: Defensa | Y1: Pintura (10% del exterior de la Motocicleta, Cuatrimoto o Motocarro) | Z1: Adhesivos de emblemas (por metro cuadrado) | AA1: Sirena Compacta | AB1: Luces estroboscopicas | AC1: Exploradoras | AD1: Casco abatible | AE1: Casco cerrado | AF1: Impermeables | AG1: Chalecos reflectivos | AH1: Rodilleras, coderas y guantes | AI1: Maletero | AJ1: Chaqueta antifricción | AK1: Body armor | AL1: Maleteros Laterales | AM1: Parrilla | AN1: Euro 3 | AO1: Inyección electrónica | AP1: ABS | AQ1: Sistema combinado (unificado) de freno | AR1: Frenos de disco en todas las ruedas | AS1: Frenos de disco en todas las ruedas | AT1: Link ficha técnica
A2: Autotecnica Colombiana S.A.S | B2: Motocicleta Electrica | C2: Todas | D2: Intervalo de Precios 1 | E2: Stärker | F2: NA | G2: SUNNY | H2: - | I2: - | J2: 4190000 | K2: 0 | L2: 4190000 | M2: 0 | N2: =+$J2*(1-M2) -> 4190000 | O2: 0 | P2: =+$J2*(1-O2) -> 4190000 | Q2: 0 | R2: =+$J2*(1-Q2) -> 4190000 | S2: 0 | T2: =+$J2*(1-S2) -> 4190000 | U2: 0 | V2: =+$J2*(1-U2) -> 4190000 | W2: 1 | X2: 118916.0544 | Y2: 1055600 | Z2: 56299.0688 | AA2: 356642 | AB2: 284559.6 | AC2: 195000 | AD2: 223184 | AE2: 153212.8 | AF2: 307230.2688 | AG2: 96512 | AH2: 124358.1248 | AI2: 129438.2752 | AJ2: 422240 | AK2: 64999.6256 | AL2: 259376 | AM2: 0 | AN2: - | AO2: - | AP2: - | AQ2: - | AR2: - | AS2: - | AT2: -
A3: Autotecnica Colombiana S.A.S | B3: Motocicleta Electrica | C3: Todas | D3: Intervalo de Precios 1 | E3: Stärker | F3: NA | G3: SHIPPER | H3: - | I3: - | J3: 3990000 | K3: 0 | L3: 3990000 | M3: 0 | N3: 3990000 | O3: 0 | P3: 3990000 | Q3: 0 | R3: 3990000 | S3: 0 | T3: 3990000 | U3: 0 | V3: 3990000 | W3: 1 | X3: 118916.0544 | Y3: 1055600 | Z3: 56299.0688 | AA3: 356642 | AB3: 284559.6 | AC3: 195000 | AD3: 223184 | AE3: 153212.8 | AF3: 307230.2688 | AG3: 96512 | AH3: 124358.1248 | AI3: 129438.2752 | AJ3: 422240 | AK3: 64999.6256 | AL3: 259376 | AM3: 0 | AN3: - | AO3: - | AP3: - | AQ3: - | AR3: - | AS3: - | AT3: -
A4: Fanalca | B4: Cuatrimotos | C4: 640cc - 799cc | D4: Intervalo de precios 2 | E4: Honda | F4: 3419004 | G4: TRX | H4: 680 FA | I4: AT 680CC 4X4 | J4: 36300000 | K4: 0 | L4: 36300000 | M4: 0.02 | N4: 35574000 | O4: 0.03 | P4: 35211000 | Q4: 0.04 | R4: 34848000 | S4: 0.05 | T4: 34485000 | U4: 0.07 | V4: 33759000 | W4: 3755423 | X4: 300000 | Y4: 100000 | Z4: 15000 | AA4: 442900 | AB4: 1030000 | AC4: 360000 | AD4: 154500 | AE4: 154500 | AF4: 166600 | AG4: 83300 | AH4: 293550 | AI4: 116600 | AJ4: 195700 | AK4: 92700 | AL4: 210000 | AM4: 150000 | AN4: NO | AO4: NO | AP4: NO | AQ4: NO | AR4: NO | AS4: SI | AT4: http://motos.honda.com.co/cuatrimotos/TRX-680-FA
A5: Colombiana De Comercio S.A. Siglas Corbeta S.A. y/o Alkosto S.A. | B5: Motocarro | C5: Platon | D5: Intervalo de precios 1 | E5: AKT | F5: 15919010 | G5: CARGUERO | H5: 200 ZW [BAJO] | I5: MT 200CC | J5: 10400000 | K5: 0.08 | L5: 9568000 | M5: 0.08 | N5: 9568000 | O5: 0.08 | P5: 9568000 | Q5: 0.08 | R5: 9568000 | S5: 0.08 | T5: 9568000 | U5: 0.08 | V5: 9568000 | W5: 1300000 | X5: 0 | Y5: 323000 | Z5: 60000 | AA5: 370000 | AB5: 300000 | AC5: 200000 | AD5: 95000 | AE5: 75000 | AF5: 40000 | AG5: 15000 | AH5: 190000 | AI5: 70000 | AJ5: 180000 | AK5: 176000 | AL5: 424000 | AM5: N/A | AN5: NO | AO5: NO | AP5: NO | AQ5: NO | AR5: SI | AS5: NO | AT5: http://www.aktmotos.com/motos/carguero/carguero-3w-200
A6: Colombiana De Comercio S.A. Siglas Corbeta S.A. y/o Alkosto S.A. | B6: Motocicleta Deportiva y Calle | C6: 90cc - 123cc | D6: Intervalo de precios 2 | E6: TVS | F6: 29517005 | G6: STAR [2] | H6: SPORT | I6: MT 100CC | J6: 3600000 | K6: 0.08 | L6: 3312000 | M6: 0.08 | N6: 3312000 | O6: 0.08 | P6: 3312000 | Q6: 0.08 | R6: 3312000 | S6: 0.08 | T6: 3312000 | U6: 0.08 | V6: 3312000 | W6: 850000 | X6: 45000 | Y6: 212000 | Z6: 60000 | AA6: 370000 | AB6: 300000 | AC6: 200000 | AD6: 95000 | AE6: 75000 | AF6: 40000 | AG6: 15000 | AH6: 190000 | AI6: 70000 | AJ6: 180000 | AK6: 176000 | AL6: 424000 | AM6: 60000 | AN6: NO | AO6: NO | AP6: NO | AQ6: NO | AR6: SI | AS6: NO | AT6: http://www.tvsmotos.com.co/motos/street/tvs-sport-100
A7: Autotecnica Colombiana S.A.S | B7: Motocicleta Deportiva y Calle | C7: 90cc - 123cc | D7: Intervalo de precios 2 | E7: Auteco | F7: 317015 | G7: BAJAJ | H7: BOXER CT100 | I7: MT 100CC | J7: 3600000 | K7: 0.1 | L7: 3240000 | M7: 0.1 | N7: 3240000 | O7: 0.1 | P7: 3240000 | Q7: 0.1 | R7: 3240000 | S7: 0.1 | T7: 3240000 | U7: 0.1 | V7: 2700000 | W7: 1367400 | X7: 137800 | Y7: 1229600 | Z7: 65720 | AA7: 413400 | AB7: 328600 | AC7: 226840 | AD7: 259700 | AE7: 174900 | AF7: 355100 | AG7: 111300 | AH7: 143100 | AI7: 148400 | AJ7: 492900 | AK7: 75789.56345 | AL7: 302100 | AM7: 116600 | AN7: NO | AO7: NO | AP7: NO | AQ7: NO | AR7: NO | AS7: NO | AT7: -
A8: Suzuki Motor De Colombia S.A. | B8: Motocicleta Deportiva y Calle | C8: 90cc - 123cc | D8: Intervalo de precios 3 | E8: Suzuki | F8: 8817132 | G8: AX4 | H8: 110 | I8: MT 110CC | J8: 3700000 | K8: 0.12 | L8: 3256000 | M8: 0.125 | N8: 3237500 | O8: 0.126 | P8: 3233800 | Q8: 0.127 | R8: 3230100 | S8: 0.129 | T8: 3222700 | U8: 0.13 | V8: 5570000 | W8: 1624388.814 | X8: NA | Y8: 1 | Z8: 489720 | AA8: NA | AB8: NA | AC8: NA | AD8: 231333.234 | AE8: 231333.234 | AF8: 412296.434 | AG8: 118465.6 | AH8: 191224 | AI8: 101372.04 | AJ8: 354464 | AK8: 149248 | AL8: NA | AM8: 183559.882 | AN8: NO | AO8: NO | AP8: NO | AQ8: NO | AR8: NO | AS8: NO | AT8: http://www.suzuki.com.co/sites/default/files/textos/catalogo_ax4.pdf
A9: Fanalca | B9: Motocicleta Deportiva y Calle | C9: 90cc - 123cc | D9: Intervalo de precios 3 | E9: Honda | F9: 3417135 | G9: CB | H9: 110 | I9: MT 110CC | J9: 4100000 | K9: 0 | L9: 4100000 | M9: 0.04 | N9: 3936000 | O9: 0.06 | P9: 3854000 | Q9: 0.08 | R9: 3772000 | S9: 0.1 | T9: 3690000 | U9: 0.12 | V9: =+$J9*(1-U9) -> 3608000 | W9: 1442442.16 | X9: 87550 | Y9: 80000 | Z9: 15000 | AA9: 442900 | AB9: 916300 | AC9: 360000 | AD9: 154500 | AE9: 154500 | AF9: 166600 | AG9: 83300 | AH9: 293550 | AI9: 116600 | AJ9: 154500 | AK9: 92700 | AL9: 210000 | AM9: 46350 | AN9: NO | AO9: NO | AP9: NO | AQ9: NO | AR9: NO | AS9: NO | AT9: http://motos.honda.com.co/sport/CB-110
A10: Fanalca | B10: Motocicleta Deportiva y Calle | C10: 90cc - 123cc | D10: Intervalo de precios 3 | E10: Honda | F10: 3417171 | G10: DREAM | H10: NEO | I10: MT 110CC | J10: 3700000 | K10: 0 | L10: 3700000 | M10: 0.04 | N10: 3552000 | O10: 0.06 | P10: 3478000 | Q10: 0.08 | R10: 3404000 | S10: 0.1 | T10: 3330000 | U10: 0.12 | V10: 3256000 | W10: 1452098 | X10: 87550 | Y10: 80000 | Z10: 15000 | AA10: 442900 | AB10: 916300 | AC10: 360000 | AD10: 154500 | AE10: 154500 | AF10: 166600 | AG10: 83300 | AH10: 293550 | AI10: 116600 | AJ10: 154500 | AK10: 92700 | AL10: 210000 | AM10: 46350 | AN10: NO | AO10: NO | AP10: NO | AQ10: NO | AR10: NO | AS10: NO | AT10: http://motos.honda.com.co/sport/dream-neo-110
A11: Colombiana De Comercio S.A. Siglas Corbeta S.A. y/o Alkosto S.A. | B11: Motocicleta Deportiva y Calle | C11: 124cc - 134cc | D11: Intervalo de precios 1 | E11: AKT | F11: 15917038 | G11: AK | H11: 125 NKD FRENO DISCO | I11: MT 125CC | J11: 2900000 | K11: 0.08 | L11: 2668000 | M11: 0.08 | N11: 2668000 | O11: 0.08 | P11: 2668000 | Q11: 0.08 | R11: 2668000 | S11: 0.08 | T11: 2668000 | U11: 0.08 | V11: 2668000 | W11: 850000 | X11: 45000 | Y11: 90000 | Z11: 60000 | AA11: 370000 | AB11: 300000 | AC11: 200000 | AD11: 95000 | AE11: 75000 | AF11: 40000 | AG11: 15000 | AH11: 190000 | AI11: 70000 | AJ11: 180000 | AK11: 176000 | AL11: 424000 | AM11: 60000 | AN11: NO | AO11: NO | AP11: NO | AQ11: NO | AR11: NO | AS11: NO | AT11: http://www.aktmotos.com/motos/street/nkd-125
A12: Suzuki Motor De Colombia S.A. | B12: Motocicleta Deportiva y Calle | C12: 124cc - 134cc | D12: Intervalo de precios 1 | E12: Suzuki | F12: 8817145 | G12: GN | H12: 125 NOVA | I12: MT 125CC | J12: 4400000 | K12: 0.12 | L12: 4048000 | M12: 0.125 | N12: 3850000 | O12: 0.126 | P12: 3845600 | Q12: 0.127 | R12: 3841200 | S12: 0.129 | T12: 3832400 | U12: 0.13 | V12: 3828000 | W12: 1845015.7 | X12: NA | Y12: 1 | Z12: 462000 | AA12: NA | AB12: NA | AC12: NA | AD12: 218238.9 | AE12: 218238.9 | AF12: 388958.9 | AG12: 111760 | AH12: 180400 | AI12: 95634 | AJ12: 334400 | AK12: 140800 | AL12: NA | AM12: NA | AN12: NO | AO12: NO | AP12: NO | AQ12: NO | AR12: NO | AS12: NO | AT12: http://www.suzuki.com.co/sites/default/files/textos/catalogo_gn125.pdf
A13: Autotecnica Colombiana S.A.S | B13: Motocicleta Deportiva y Calle | C13: 124cc - 134cc | D13: Intervalo de precios 2 | E13: Auteco | F13: 317056 | G13: BAJAJ | H13: DISCOVER [3] 125 ST | I13: MT 125CC | J13: 5000000 | K13: 0.1 | L13: 4500000 | M13: 0.1 | N13: 4500000 | O13: 0.1 | P13: 4500000 | Q13: 0.1 | R13: 4500000 | S13: 0.1 | T13: 4500000 | U13: 0.1 | V13: 4500000 | W13: 1515800 | X13: 137800 | Y13: 1229600 | Z13: 65720 | AA13: 413400 | AB13: 328600 | AC13: 226840 | AD13: 259700 | AE13: 174900 | AF13: 355100 | AG13: 111300 | AH13: 143100 | AI13: 148400 | AJ13: 492900 | AK13: 75789.56345 | AL13: 302100 | AM13: 116600 | AN13: NO | AO13: NO | AP13: NO | AQ13: NO | AR13: NO | AS13: NO | AT13: -
A14: Autotecnica Colombiana S.A.S | B14: Motocicleta Deportiva y Calle | C14: 124cc - 134cc | D14: Intervalo de precios 2 | E14: Auteco | F14: 317069 | G14: BAJAJ | H14: PULSAR SPEED | I14: MT 135CC | J14: 4500000 | K14: 0.1 | L14: 4050000 | M14: 0.1 | N14: 4050000 | O14: 0.1 | P14: 4050000 | Q14: 0.1 | R14: 4050000 | S14: 0.1 | T14: 4050000 | U14: 0.1 | V14: 4050000 | W14: 1515800 | X14: 137800 | Y14: 1314400 | Z14: 65720 | AA14: 413400 | AB14: 328600 | AC14: 226840 | AD14: 259700 | AE14: 174900 | AF14: 355100 | AG14: 111300 | AH14: 143100 | AI14: 148400 | AJ14: 492900 | AK14: 75789.56345 | AL14: 302100 | AM14: 116600 | AN14: NO | AO14: NO | AP14: NO | AQ14: NO | AR14: NO | AS14: NO | AT14: -
A15: Industria Colombiana de Motocicletas - Yamaha S.A. | B15: Motocicleta Deportiva y Calle | C15: 124cc - 134cc | D15: Intervalo de precios 2 | E15: Yamaha | F15: 9817178 | G15: LIBERO | H15: 125 RV | I15: MT 125CC | J15: 4700000 | K15: 0.03 | L15: 4559000 | M15: 0.033 | N15: 4544900 | O15: 0.033 | P15: 4544900 | Q15: 0.035 | R15: 4535500 | S15: 0.037 | T15: 4526100 | U15: 0.04 | V15: 4512000 | W15: 800100 | X15: 42294 | Y15: 92379 | Z15: 7235 | AA15: 478590 | AB15: 1114386.48 | AC15: 83475 | AD15: 166950 | AE15: 155820 | AF15: 200340 | AG15: 89040 | AH15: 322770 | AI15: 101124 | AJ15: 235956 | AK15: 122430 | AL15: 0 | AM15: 3339 | AN15: NO | AO15: NO | AP15: NO | AQ15: NO | AR15: NO | AS15: NO | AT15: http://www.incolmotos-yamaha.com.co/site/productos/motos/urbanas-trabajo-y-deportivas/libero125/especificaciones-libero125
A16: Colombiana De Comercio S.A. Siglas Corbeta S.A. y/o Alkosto S.A. | B16: Motocicleta Deportiva y Calle | C16: 135cc - 165cc | D16: Intervalo de precios 2 | E16: TVS | F16: 29517006 | G16: APACHE [2] | H16: RTR160 | I16: MT 160CC | J16: 4900000 | K16: 0.08 | L16: 4508000 | M16: 0.08 | N16: 4508000 | O16: 0.08 | P16: 4508000 | Q16: 0.08 | R16: 4508000 | S16: 0.08 | T16: 4508000 | U16: 0.08 | V16: 4508000 | W16: 970000 | X16: 45000 | Y16: 180000 | Z16: 60000 | AA16: 370000 | AB16: 300000 | AC16: 200000 | AD16: 95000 | AE16: 75000 | AF16: 40000 | AG16: 15000 | AH16: 190000 | AI16: 70000 | AJ16: 180000 | AK16: 176000 | AL16: 424000 | AM16: 60000 | AN16: NO | AO16: NO | AP16: NO | AQ16: NO | AR16: SI | AS16: NO | AT16: http://www.tvsmotos.com.co/motos/street/apache-rtr-160
A17: Autotecnica Colombiana S.A.S | B17: Motocicleta Deportiva y Calle | C17: 135cc - 165cc | D17: Intervalo de precios 2 | E17: Auteco | F17: 317061 | G17: BAJAJ | H17: DISCOVER [3] 150 ST | I17: MT 150CC | J17: 4900000 | K17: 0.1 | L17: 4770000 | M17: 0.1 | N17: 4410000 | O17: 0.1 | P17: 4410000 | Q17: 0.1 | R17: 4410000 | S17: 0.1 | T17: 4410000 | U17: 0.1 | V17: 4410000 | W17: 1515800 | X17: 137800 | Y17: 1314400 | Z17: 65720 | AA17: 413400 | AB17: 328600 | AC17: 226840 | AD17: 259700 | AE17: 174900 | AF17: 355100 | AG17: 111300 | AH17: 143100 | AI17: 148400 | AJ17: 492900 | AK17: 75789.56345 | AL17: 302100 | AM17: 116600 | AN17: NO | AO17: NO | AP17: NO | AQ17: NO | AR17: NO | AS17: NO | AT17: -
A18: Autotecnica Colombiana S.A.S | B18: Motocicleta Deportiva y Calle | C18: 135cc - 165cc | D18: Intervalo de precios 2 | E18: Auteco | F18: 317071 | G18: BAJAJ | H18: PULSAR 160 NS | I18: MT 160CC | J18: 6200000 | K18: 0.1 | L18: 5580000 | M18: 0.1 | N18: 5580000 | O18: 0.1 | P18: 5580000 | Q18: 0.1 | R18: 5580000 | S18: 0.1 | T18: 5580000 | U18: 0.1 | V18: 5580000 | W18: 1515800 | X18: 137800 | Y18: 1314400 | Z18: 65720 | AA18: 413400 | AB18: 328600 | AC18: 226840 | AD18: 259700 | AE18: 174900 | AF18: 355100 | AG18: 111300 | AH18: 143100 | AI18: 148400 | AJ18: 492900 | AK18: 75789.56345 | AL18: 302100 | AM18: 116600 | AN18: NO | AO18: NO | AP18: NO | AQ18: NO | AR18: NO | AS18: NO | AT18: -
A19: Suzuki Motor De Colombia S.A. | B19: Motocicleta Deportiva y Calle | C19: 135cc - 165cc | D19: Intervalo de precios 3 | E19: Suzuki | F19: 8817149 | G19: GIXXER | H19: 150 | I19: MT 150CC | J19: 6500000 | K19: 0.12 | L19: 5720000 | M19: 0.125 | N19: 5687500 | O19: 0.126 | P19: 5681000 | Q19: 0.127 | R19: 5674500 | S19: 0.129 | T19: 5661500 | U19: 0.13 | V19: 5655000 | W19: 2396299.07 | X19: 76501.26 | Y19: 1 | Z19: 489720 | AA19: 374023.65 | AB19: 766762.766 | AC19: NA | AD19: 231333.234 | AE19: 231333.234 | AF19: 412296.434 | AG19: 118465.6 | AH19: 191224 | AI19: 85817.6 | AJ19: 354464 | AK19: 149248 | AL19: NA | AM19: 78355.2 | AN19: NO | AO19: NO | AP19: NO | AQ19: NO | AR19: NO | AS19: NO | AT19: http://www.suzuki.com.co/sites/default/files/textos/catalogo_gixxer.pdf
A20: Industria Colombiana de Motocicletas - Yamaha S.A. | B20: Motocicleta Deportiva y Calle | C20: 135cc - 165cc | D20: Intervalo de precios 3 | E20: Yamaha | F20: 9817189 | G20: FZ-S | H20: FI 2.0 | I20: MT 150CC | J20: 6600000 | K20: 0.05 | L20: 6270000 | M20: 0.053 | N20: 6250200 | O20: 0.054 | P20: 6243600 | Q20: 0.055 | R20: 6237000 | S20: 0.06 | T20: 6204000 | U20: 0.07 | V20: 6138000 | W20: 1029431 | X20: 44520 | Y20: 100170 | Z20: 8348 | AA20: 478590 | AB20: 1103873 | AC20: 83475 | AD20: 166950 | AE20: 155820 | AF20: 200340 | AG20: 100170 | AH20: 322770 | AI20: 85701 | AJ20: 233730 | AK20: 122430 | AL20: 0 | AM20: 33920 | AN20: SI | AO20: SI | AP20: NO | AQ20: NO | AR20: NO | AS20: NO | AT20: http://www.incolmotos-yamaha.com.co/site/Productos/Motos/Urbanas-Trabajo-y-Deportivas/Fz-/Especificaciones-Fz-s
A21: Colombiana De Comercio S.A. Siglas Corbeta S.A. y/o Alkosto S.A. | B21: Motocicleta Deportiva y Calle | C21: 166cc - 190cc | D21: Intervalo de precios 1 | E21: TVS | F21: 29517007 | G21: APACHE [2] | H21: RTR180 | I21: MT 180CC | J21: 5600000 | K21: 0.08 | L21: 5152000 | M21: 0.08 | N21: 5152000 | O21: 0.08 | P21: 5152000 | Q21: 0.08 | R21: 5152000 | S21: 0.08 | T21: 5152000 | U21: 0.08 | V21: 5152000 | W21: 970000 | X21: 45000 | Y21: 170000 | Z21: 60000 | AA21: 370000 | AB21: 300000 | AC21: 200000 | AD21: 95000 | AE21: 75000 | AF21: 40000 | AG21: 15000 | AH21: 190000 | AI21: 70000 | AJ21: 180000 | AK21: 176000 | AL21: 424000 | AM21: 60000 | AN21: NO | AO21: NO | AP21: NO | AQ21: NO | AR21: NO | AS21: SI | AT21: http://www.tvsmotos.com.co/motos/street/apache-rtr-180
A22: Autotecnica Colombiana S.A.S | B22: Motocicleta Deportiva y Calle | C22: 166cc - 190cc | D22: Intervalo de precios 1 | E22: Auteco | F22: 317045 | G22: BAJAJ | H22: PULSAR UG | I22: MT 180CC | J22: 5800000 | K22: 0.1 | L22: 5220000 | M22: 0.1 | N22: 5220000 | O22: 0.1 | P22: 5220000 | Q22: 0.1 | R22: 5220000 | S22: 0.1 | T22: 5220000 | U22: 0.1 | V22: 5220000 | W22: 1535000 | X22: 137800 | Y22: 1335000 | Z22: 65720 | AA22: 413400 | AB22: 328600 | AC22: 226840 | AD22: 259700 | AE22: 174900 | AF22: 355100 | AG22: 111300 | AH22: 143100 | AI22: 148400 | AJ22: 492900 | AK22: 75789.56345 | AL22: 302100 | AM22: 116600 | AN22: NO | AO22: NO | AP22: NO | AQ22: NO | AR22: NO | AS22: NO | AT22: http://www.incolmotos-yamaha.com.co/site/Productos/Motos/Todoterreno/Xtz125/Especificaciones-Xtz-125
A23: Autotecnica Colombiana S.A.S | B23: Motocicleta Deportiva y Calle | C23: 191 cc - 220cc | D23: Intervalo de precios 2 | E23: Auteco | F23: 317057 | G23: BAJAJ | H23: PULSAR 200 NS | I23: MT 200CC | J23: 7500000 | K23: 0.1 | L23: 6750000 | M23: 0.1 | N23: =+$J23*(1-M23) -> 6750000 | O23: 0.1 | P23: =+$J23*(1-O23) -> 6750000 | Q23: 0.1 | R23: =+$J23*(1-Q23) -> 6750000 | S23: 0.1 | T23: =+$J23*(1-S23) -> 6750000 | U23: 0.1 | V23: 6750000 | W23: 1727800 | X23: 137800 | Y23: 1335600 | Z23: 65720 | AA23: 413400 | AB23: 328600 | AC23: 226840 | AD23: 259700 | AE23: 174900 | AF23: 355100 | AG23: 111300 | AH23: 143100 | AI23: 148400 | AJ23: 492900 | AK23: 75789.56345 | AL23: 302100 | AM23: 116600 | AN23: NO | AO23: NO | AP23: NO | AQ23: NO | AR23: NO | AS23: SI | AT23: -
A24: Autotecnica Colombiana S.A.S | B24: Motocicleta Deportiva y Calle | C24: 221cc - 274cc | D24: Intervalo de precios 1 | E24: Kawasaki | F24: 4517131 | G24: Z | H24: Z250 SL | I24: MT 250CC | J24: 12000000 | K24: 0.06 | L24: 11280000 | M24: 0.06 | N24: 11280000 | O24: 0.06 | P24: 11280000 | Q24: 0.06 | R24: 11280000 | S24: 0.06 | T24: 11280000 | U24: 0.06 | V24: 11280000 | W24: 4324800 | X24: 137800 | Y24: 1335600 | Z24: 62000 | AA24: 413400 | AB24: 328600 | AC24: 226840 | AD24: 259700 | AE24: 174900 | AF24: 355100 | AG24: 111300 | AH24: 143100 | AI24: 148400 | AJ24: 492900 | AK24: 75789.56345 | AL24: 302100 | AM24: 116600 | AN24: SI | AO24: SI | AP24: SI | AQ24: NO | AR24: NO | AS24: SI | AT24: http://www.incolmotos-yamaha.com.co/site/Productos/Motos/Todoterreno/Xtz250/Especificaciones-Xtz-250
A25: Fanalca | B25: Motocicleta Deportiva y Calle | C25: 325cc - 525cc | D25: Intervalo de precios 1 | E25: Honda | F25: 3417174 | G25: CB | H25: 500 F | I25: MT 500CC ABS | J25: 28000000 | K25: 0 | L25: 28000000 | M25: 0.02 | N25: 27440000 | O25: 0.03 | P25: 27160000 | Q25: 0.04 | R25: 26880000 | S25: 0.05 | T25: 26600000 | U25: 0.05 | V25: 26600000 | W25: 6266859 | X25: 123600 | Y25: 100000 | Z25: 15000 | AA25: 442900 | AB25: 1030000 | AC25: 360000 | AD25: 154500 | AE25: 154500 | AF25: 166600 | AG25: 83300 | AH25: 293550 | AI25: 116600 | AJ25: 195700 | AK25: 92700 | AL25: 210000 | AM25: 72100 | AN25: SI | AO25: SI | AP25: SI | AQ25: NO | AR25: NO | AS25: SI | AT25: http://motos.honda.com.co/super-sport/CB-500F
A26: Industria Colombiana de Motocicletas - Yamaha S.A. | B26: Motocicleta Doble Proposito Tipo Enduro | C26: 100cc - 125cc | D26: Intervalo de precios 2 | E26: Yamaha | F26: 9817188 | G26: XTZ [2] | H26: 125 | I26: MT 125CC | J26: 6700000 | K26: 0 | L26: 6700000 | M26: 0 | N26: 6700000 | O26: 0 | P26: 6700000 | Q26: 0.01 | R26: 6633000 | S26: 0.015 | T26: 6599500 | U26: 0.02 | V26: 6566000 | W26: 2837100 | X26: 139125 | Y26: 168950 | Z26: 10017 | AA26: 554274 | AB26: 1226526 | AC26: 100170 | AD26: 189210 | AE26: 178080 | AF26: 233730 | AG26: 100170 | AH26: 378420 | AI26: 111300 | AJ26: 267120 | AK26: 155820 | AL26: 0 | AM26: 11130 | AN26: NO | AO26: NO | AP26: NO | AQ26: NO | AR26: NO | AS26: NO | AT26: http://www.incolmotos-yamaha.com.co/site/Productos/Motos/Todoterreno/Xtz125/Especificaciones-Xtz-125
A27: Autotecnica Colombiana S.A.S | B27: Motocicleta Doble Proposito Tipo Enduro | C27: 126cc - 165cc | D27: Intervalo de precios 2 | E27: Kawasaki | F27: 4517112 | G27: KLX | H27: 150 | I27: MT 150CC | J27: 8200000 | K27: 0.06 | L27: 7708000 | M27: 0.06 | N27: 7708000 | O27: 0.06 | P27: 7708000 | Q27: 0.06 | R27: 7708000 | S27: 0.06 | T27: 7708000 | U27: 0.06 | V27: 7708000 | W27: 1749000 | X27: 137800 | Y27: 1229600 | Z27: 65720 | AA27: 413400 | AB27: 328600 | AC27: 226840 | AD27: 259700 | AE27: 174900 | AF27: 355100 | AG27: 111300 | AH27: 143100 | AI27: 148400 | AJ27: 492900 | AK27: 75789.56345 | AL27: 302100 | AM27: 116600 | AN27: SI | AO27: SI | AP27: NO | AQ27: NO | AR27: NO | AS27: SI | AT27: -
A28: Industria Colombiana de Motocicletas - Yamaha S.A. | B28: Motocicleta Doble Proposito Tipo Enduro | C28: 226cc - 274cc | D28: Intervalo de precios 2 | E28: Yamaha | F28: 9817137 | G28: XTZ [1] | H28: 250 | I28: MT 250CC | J28: 16000000 | K28: 0.03 | L28: 15520000 | M28: 0.03 | N28: 15520000 | O28: 0.035 | P28: 15440000 | Q28: 0.04 | R28: 15360000 | S28: 0.04 | T28: 15360000 | U28: 0.05 | V28: 15200000 | W28: 3642450 | X28: 144690 | Y28: 211470 | Z28: 10017 | AA28: 551274 | AB28: 1226526 | AC28: 100170 | AD28: 189210 | AE28: 178080 | AF28: 222600 | AG28: 100170 | AH28: 345030 | AI28: 111300 | AJ28: 255900 | AK28: 144690 | AL28: 1001700 | AM28: 66780 | AN28: NO | AO28: SI | AP28: NO | AQ28: NO | AR28: NO | AS28: SI | AT28: http://www.incolmotos-yamaha.com.co/site/Productos/Motos/Todoterreno/Xtz250/Especificaciones-Xtz-250
A29: Fanalca | B29: Motocicleta Doble Proposito Tipo Enduro | C29: 275cc - 324cc | D29: Intervalo de precios 1 | E29: Honda | F29: 3417173 | G29: XRE | H29: 300 | I29: MT 300CC | J29: 15700000 | K29: 0 | L29: 15700000 | M29: 0.02 | N29: 15386000 | O29: 0.03 | P29: 15229000 | Q29: 0.035 | R29: 15150500 | S29: 0.04 | T29: 15072000 | U29: 0.045 | V29: 14993500 | W29: 3700000 | X29: 116600 | Y29: 80000 | Z29: 15000 | AA29: 442900 | AB29: 916300 | AC29: 360000 | AD29: 154500 | AE29: 154500 | AF29: 166600 | AG29: 83300 | AH29: 293550 | AI29: 116600 | AJ29: 195700 | AK29: 92700 | AL29: 210000 | AM29: 0 | AN29: NO | AO29: NO | AP29: SI | AQ29: NO | AR29: NO | AS29: SI | AT29: http://motos.honda.com.co/todo-terreno/XRE-300
A30: Industria Colombiana de Motocicletas - Yamaha S.A. | B30: Motocicleta Doble Proposito Tipo Enduro | C30: 600cc - 670cc | D30: Intervalo de precios 1 | E30: Yamaha | F30: 9817128 | G30: XT | H30: 660 R | I30: MT 660CC | J30: 27000000 | K30: 0.05 | L30: 25650000 | M30: 0.055 | N30: 25515000 | O30: 0.057 | P30: 25461000 | Q30: 0.06 | R30: 25380000 | S30: 0.065 | T30: 25245000 | U30: 0.07 | V30: 25110000 | W30: 1930950 | X30: 55650 | Y30: 179193 | Z30: 8348 | AA30: 478590 | AB30: 1103873 | AC30: 83475 | AD30: 166950 | AE30: 155820 | AF30: 200340 | AG30: 89040 | AH30: 322770 | AI30: 100170 | AJ30: 233730 | AK30: 111300 | AL30: 1001700 | AM30: 31164 | AN30: SI | AO30: SI | AP30: NO | AQ30: NO | AR30: NO | AS30: SI | AT30: http://www.incolmotos-yamaha.com.co/site/Productos/Motos/Todoterreno/Xt660r/Especificaciones-Xt660-R
A31: Suzuki Motor De Colombia S.A. | B31: Motocicleta Doble Proposito Tipo Enduro | C31: 600cc - 670cc | D31: Intervalo de precios 1 | E31: Suzuki | F31: 8817058 | G31: DR | H31: 650 | I31: MT 650CC | J31: 24500000 | K31: 0.06 | L31: 23030000 | M31: 0.065 | N31: 22907500 | O31: 0.066 | P31: 22883000 | Q31: 0.067 | R31: 22858500 | S31: 0.069 | T31: 22809500 | U31: 0.07 | V31: 22785000 | W31: 6242840.956 | X31: 249432.6068 | Y31: 1 | Z31: 489720 | AA31: 358108.916 | AB31: 766762.766 | AC31: NA | AD31: 231333.234 | AE31: 231333.234 | AF31: 412296.434 | AG31: 118465.6 | AH31: 191224 | AI31: 101372.04 | AJ31: 354464 | AK31: 149248 | AL31: NA | AM31: 80436.51 | AN31: NO | AO31: NO | AP31: NO | AQ31: NO | AR31: NO | AS31: SI | AT31: http://www.suzuki.com.co/sites/default/files/textos/catalogo_dr650.pdf
A32: Autotecnica Colombiana S.A.S | B32: Motocicleta Doble Proposito Tipo Enduro | C32: 600cc - 670cc | D32: Intervalo de precios 1 | E32: Kawasaki | F32: 4517102 | G32: KLR | H32: KL650 | I32: MT 650CC | J32: 33100000 | K32: 0.05 | L32: 31445000 | M32: 0.05 | N32: 31445000 | O32: 0.05 | P32: 31445000 | Q32: 0.05 | R32: 31445000 | S32: 0.05 | T32: 31445000 | U32: 0.05 | V32: 31445000 | W32: 4229400 | X32: 137800 | Y32: 1590000 | Z32: 65720 | AA32: 413400 | AB32: 328600 | AC32: 226840 | AD32: 259700 | AE32: 174900 | AF32: 355100 | AG32: 111300 | AH32: 143100 | AI32: 148400 | AJ32: 492900 | AK32: 75789.56345 | AL32: 302100 | AM32: 116600 | AN32: NO | AO32: NO | AP32: NO | AQ32: NO | AR32: NO | AS32: SI | AT32: -
A33: Suzuki Motor De Colombia S.A. | B33: Motocicleta Doble Proposito Tipo Turismo | C33: 600cc - 670cc | D33: Intervalo de precios 2 | E33: Suzuki | F33: 8817162 | G33: DL | H33: 650XT [V STROM] [2] | I33: MT 650CC ABS | J33: 36400000 | K33: 0.06 | L33: 34216000 | M33: 0.065 | N33: 34034000 | O33: 0.066 | P33: 33997600 | Q33: 0.067 | R33: 33961200 | S33: 0.069 | T33: 33888400 | U33: 0.07 | V33: =+$J33*(1-U33) -> 33852000 | W33: 9373999.827 | X33: 127200.106 | Y33: 157410 | Z33: 489720 | AA33: 358107.75 | AB33: 766762.766 | AC33: 1302701.84 | AD33: 231333.234 | AE33: 231333.234 | AF33: 412296.434 | AG33: 118465.6 | AH33: 191224 | AI33: 167483.074 | AJ33: 354464 | AK33: 149248 | AL33: 329141.978 | AM33: 50686.02 | AN33: NO | AO33: SI | AP33: SI | AQ33: SI | AR33: NO | AS33: SI | AT33: http://www.suzuki.com.co/sites/default/files/textos/catalogo_dl650.pdf
A34: Industria Colombiana de Motocicletas - Yamaha S.A. | B34: Motocicleta Doble Proposito Tipo Turismo | C34: 750cc - 850cc | D34: Intervalo de precios 2 | E34: Yamaha | F34: 9817187 | G34: MT | H34: 09 TRACER | I34: MT 850CC ABS | J34: 44000000 | K34: 0 | L34: 44000000 | M34: 0 | N34: 44000000 | O34: 0 | P34: 44000000 | Q34: 0 | R34: 44000000 | S34: 0 | T34: 44000000 | U34: 0 | V34: 44000000 | W34: 5600700 | X34: 244860 | Y34: 142464 | Z34: 13356 | AA34: 554274 | AB34: 1226526 | AC34: 100170 | AD34: 189210 | AE34: 178080 | AF34: 222600 | AG34: 100170 | AH34: 367290 | AI34: 133560 | AJ34: 267120 | AK34: 155820 | AL34: 2782500 | AM34: 333900 | AN34: SI | AO34: SI | AP34: SI | AQ34: NO | AR34: NO | AS34: SI | AT34: http://www.incolmotos-yamaha.com.co/site/Productos/Motos/Deportivas/Mt09-Tracer/Especificaciones-Mt-09-Tracer
A35: Industria Colombiana de Motocicletas - Yamaha S.A. | B35: Motocicleta Doble Proposito Tipo Turismo | C35: mayor a 1.100cc | D35: Intervalo de precios 1 | E35: Yamaha | F35: 9817186 | G35: XT | H35: 1200 ZE [SUPER TENERE] [2] | I35: MT 1200CC | J35: 52000000 | K35: 0 | L35: 52000000 | M35: 0 | N35: 52000000 | O35: 0 | P35: 52000000 | Q35: 0 | R35: 52000000 | S35: 0 | T35: 52000000 | U35: 0 | V35: 52000000 | W35: 5276250 | X35: 200300 | Y35: 142464 | Z35: 13356 | AA35: 554274 | AB35: 1226526 | AC35: 100170 | AD35: 189210 | AE35: 178080 | AF35: 222600 | AG35: 89040 | AH35: 345030 | AI35: 133560 | AJ35: 255990 | AK35: 144690 | AL35: 2782500 | AM35: 407358 | AN35: SI | AO35: SI | AP35: SI | AQ35: SI | AR35: SI | AS35: SI | AT35: http://www.incolmotos-yamaha.com.co/site/productos/motos/turismo/xt1200ze/especificaciones-super-tenere-ze
A36: Colombiana De Comercio S.A. Siglas Corbeta S.A. y/o Alkosto S.A. | B36: Motocicleta Moped | C36: Todos | D36: Intervalo de precios 1 | E36: AKT | F36: 15917024 | G36: AK | H36: 110S [2] | I36: MT 110CC | J36: 2500000 | K36: 0.08 | L36: 2300000 | M36: 0.08 | N36: 2300000 | O36: 0.08 | P36: 2300000 | Q36: 0.08 | R36: 2300000 | S36: 0.08 | T36: 2300000 | U36: 0.08 | V36: 2300000 | W36: 850000 | X36: 0 | Y36: 115000 | Z36: 60000 | AA36: 370000 | AB36: 300000 | AC36: 200000 | AD36: 95000 | AE36: 75000 | AF36: 40000 | AG36: 15000 | AH36: 190000 | AI36: 70000 | AJ36: 180000 | AK36: 176000 | AL36: 424000 | AM36: 60000 | AN36: NO | AO36: NO | AP36: NO | AQ36: NO | AR36: NO | AS36: NO | AT36: https://www.aktmotos.com/motos/semiautomatica/special-110-x
A37: Autotecnica Colombiana S.A.S | B37: Motocicleta Moped | C37: Todos | D37: Intervalo de precios 1 | E37: Kymco | F37: 39617005 | G37: ADVANCE R | H37: 110 | I37: MT 110CC | J37: 3900000 | K37: 0.1 | L37: 3510000 | M37: 0.1 | N37: 3510000 | O37: 0.1 | P37: 3510000 | Q37: 0.1 | R37: 3510000 | S37: 0.1 | T37: 3510000 | U37: 0.1 | V37: 3510000 | W37: 1585000 | X37: 130000 | Y37: 1500000 | Z37: 62000 | AA37: 390000 | AB37: 310000 | AC37: 214000 | AD37: 245000 | AE37: 165000 | AF37: 335000 | AG37: 105000 | AH37: 135000 | AI37: 140000 | AJ37: 465000 | AK37: 71499.58816 | AL37: 285000 | AM37: 110000 | AN37: NO | AO37: NO | AP37: NO | AQ37: NO | AR37: NO | AS37: NO | AT37: -
A38: Colombiana De Comercio S.A. Siglas Corbeta S.A. y/o Alkosto S.A. | B38: Motocicleta Moped | C38: Todos | D38: Intervalo de precios 2 | E38: AKT | F38: 15917037 | G38: FLEX | H38: CYCLONE 125 | I38: MT 125CC | J38: 3400000 | K38: 0.08 | L38: 3128000 | M38: 0.08 | N38: 3128000 | O38: 0.08 | P38: 3128000 | Q38: 0.08 | R38: 3128000 | S38: 0.08 | T38: 3128000 | U38: 0.08 | V38: 3128000 | W38: 850000 | X38: 0 | Y38: 70000 | Z38: 60000 | AA38: 370000 | AB38: 300000 | AC38: 200000 | AD38: 95000 | AE38: 75000 | AF38: 40000 | AG38: 15000 | AH38: 190000 | AI38: 70000 | AJ38: 180000 | AK38: 176000 | AL38: 424000 | AM38: 60000 | AN38: NO | AO38: NO | AP38: NO | AQ38: NO | AR38: SI | AS38: NO | AT38: https://www.aktmotos.com/motos/semiautomatica/flex-evolution
A39: Autotecnica Colombiana S.A.S | B39: Motocicleta Moped | C39: Todos | D39: Intervalo de precios 2 | E39: Kymco | F39: 10117015 | G39: UNI-K | H39: 110 | I39: MT 110CC | J39: 3300000 | K39: 0.1 | L39: 3690000 | M39: 0.1 | N39: 2970000 | O39: 0.1 | P39: 2970000 | Q39: 0.1 | R39: 2970000 | S39: 0.1 | T39: 2970000 | U39: 0.1 | V39: 2970000 | W39: 1740000 | X39: 130000 | Y39: 1160000 | Z39: 62000 | AA39: 390000 | AB39: 310000 | AC39: 214000 | AD39: 245000 | AE39: 165000 | AF39: 335000 | AG39: 105000 | AH39: 135000 | AI39: 140000 | AJ39: 465000 | AK39: 71499.58816 | AL39: 285000 | AM39: 110000 | AN39: NO | AO39: NO | AP39: NO | AQ39: NO | AR39: NO | AS39: NO | AT39: -
A40: Suzuki Motor De Colombia S.A. | B40: Motocicleta Moped | C40: Todos | D40: Intervalo de precios 3 | E40: Suzuki | F40: 8817147 | G40: VIVA R | H40: STYLE | I40: MT 113 CC | J40: 5600000 | K40: 0.12 | L40: 4928000 | M40: 0.125 | N40: 4900000 | O40: 0.126 | P40: 4894400 | Q40: 0.127 | R40: 4888800 | S40: 0.129 | T40: 4877600 | U40: 0.13 | V40: 4872000 | W40: 2226620.534 | X40: NA | Y40: 1 | Z40: 489720 | AA40: NA | AB40: NA | AC40: NA | AD40: 231333.234 | AE40: 231333.234 | AF40: 412296.434 | AG40: 118465.6 | AH40: 191224 | AI40: NA | AJ40: 354464 | AK40: 149248 | AL40: NA | AM40: NA | AN40: NO | AO40: NO | AP40: NO | AQ40: NO | AR40: NO | AS40: NO | AT40: http://www.suzuki.com.co/sites/default/files/textos/catalogo_viva_r_.pdf
A41: Industria Colombiana de Motocicletas - Yamaha S.A. | B41: Motocicleta Moped | C41: Todos | D41: Intervalo de precios 3 | E41: Yamaha | F41: 9817153 | G41: CRYPTON [2] | H41: T115 | I41: MT 115CC | J41: 5100000 | K41: 0.04 | L41: 4896000 | M41: 0.045 | N41: 4870500 | O41: 0.05 | P41: 4845000 | Q41: 0.055 | R41: 4819500 | S41: 0.06 | T41: 4794000 | U41: 0.07 | V41: 4743000 | W41: 2059050 | X41: 0 | Y41: 75684 | Z41: 8348 | AA41: 478590 | AB41: 1103873 | AC41: 83475 | AD41: 166950 | AE41: 155820 | AF41: 200340 | AG41: 89040 | AH41: 322770 | AI41: 85701 | AJ41: 233730 | AK41: 122430 | AL41: 0 | AM41: 3339 | AN41: NO | AO41: NO | AP41: NO | AQ41: NO | AR41: NO | AS41: NO | AT41: http://www.incolmotos-yamaha.com.co/site/productos/motos/scooter-y-semiautomatica/crypton/especificaciones-crypton
A42: Suzuki Motor De Colombia S.A. | B42: Motocicleta Scooter | C42: 90cc - 123cc | D42: Intervalo de precios 2 | E42: Suzuki | F42: 8817146 | G42: LETS | H42: 112 | I42: MT 112CC | J42: 4700000 | K42: 0.12 | L42: 4136000 | M42: 0.125 | N42: 4112500 | O42: 0.126 | P42: 4107800 | Q42: 0.127 | R42: 4103100 | S42: 0.129 | T42: 4093700 | U42: 0.13 | V42: 4089000 | W42: 1811807.756 | X42: NA | Y42: 1 | Z42: 489720 | AA42: NA | AB42: NA | AC42: NA | AD42: 231333.234 | AE42: 231333.234 | AF42: 412296.434 | AG42: 118465.6 | AH42: 191224 | AI42: NA | AJ42: 354464 | AK42: 149248 | AL42: NA | AM42: NA | AN42: NO | AO42: NO | AP42: NO | AQ42: NO | AR42: NO | AS42: NO | AT42: http://www.suzuki.com.co/sites/default/files/textos/catalogo_lets.pdf
A43: Industria Colombiana de Motocicletas - Yamaha S.A. | B43: Motocicleta Scooter | C43: 90cc - 123cc | D43: Intervalo de precios 2 | E43: Yamaha | F43: 9817191 | G43: FINO [2] | H43: AF115 | I43: AT 115CC | J43: 5700000 | K43: 0.03 | L43: 5529000 | M43: 0.032 | N43: 5517600 | O43: 0.033 | P43: 5511900 | Q43: 0.034 | R43: 5506200 | S43: 0.036 | T43: 5494800 | U43: 0.04 | V43: 5472000 | W43: 1900500 | X43: 0 | Y43: 122430 | Z43: 8348 | AA43: 478590 | AB43: 1114386.48 | AC43: 100170 | AD43: 189210 | AE43: 178080 | AF43: 222600 | AG43: 100170 | AH43: 367290 | AI43: 85701 | AJ43: 267120 | AK43: 122430 | AL43: 0 | AM43: 66780 | AN43: SI | AO43: SI | AP43: NO | AQ43: NO | AR43: NO | AS43: NO | AT43: http://www.incolmotos-yamaha.com.co/site/productos/motos/scooter-y-semiautomatica/fino/especificaciones-fino
A44: Autotecnica Colombiana S.A.S | B44: Motocicleta Scooter | C44: 123cc - 134cc | D44: Intervalo de precios 2 | E44: Kymco | F44: 10117027 | G44: AGILITY | H44: GO | I44: AT 125CC | J44: 5400000 | K44: 0.1 | L44: 4770000 | M44: 0.1 | N44: 4860000 | O44: 0.1 | P44: 4860000 | Q44: 0.1 | R44: 4860000 | S44: 0.1 | T44: 4860000 | U44: 0.1 | V44: 4860000 | W44: 2308680 | X44: 137800 | Y44: 1229600 | Z44: 65720 | AA44: 413400 | AB44: 328600 | AC44: 226840 | AD44: 259700 | AE44: 174900 | AF44: 355100 | AG44: 111300 | AH44: 143100 | AI44: 148400 | AJ44: 492900 | AK44: 75789.56345 | AL44: 302100 | AM44: 116600 | AN44: NO | AO44: NO | AP44: NO | AQ44: NO | AR44: NO | AS44: NO | AT44: -
A45: Autotecnica Colombiana S.A.S | B45: Motocicleta Scooter | C45: 123cc - 134cc | D45: Intervalo de precios 2 | E45: Kymco | F45: 10117019 | G45: AGILITY | H45: DIGITAL | I45: AT 125CC | J45: 6900000 | K45: 0.1 | L45: 6210000 | M45: 0.1 | N45: 6210000 | O45: 0.1 | P45: 6210000 | Q45: 0.1 | R45: 6210000 | S45: 0.1 | T45: 6210000 | U45: 0.1 | V45: 6210000 | W45: 2308680 | X45: 137800 | Y45: 1229600 | Z45: 65720 | AA45: 413400 | AB45: 328600 | AC45: 226840 | AD45: 259700 | AE45: 174900 | AF45: 355100 | AG45: 111300 | AH45: 143100 | AI45: 148400 | AJ45: 492900 | AK45: 75789.56345 | AL45: 302100 | AM45: 116600 | AN45: NO | AO45: NO | AP45: NO | AQ45: NO | AR45: NO | AS45: NO | AT45: -
A46: Autotecnica Colombiana S.A.S | B46: Motocicleta Scooter | C46: 123cc - 134cc | D46: Intervalo de precios 2 | E46: Kymco | F46: 10117026 | G46: URBAN | H46: S | I46: AT 125CC | J46: 6300000 | K46: 0.1 | L46: 6210000 | M46: 0.1 | N46: 5670000 | O46: 0.1 | P46: 5670000 | Q46: 0.1 | R46: 5670000 | S46: 0.1 | T46: 5670000 | U46: 0.1 | V46: 5670000 | W46: 2308680 | X46: 137800 | Y46: 1229600 | Z46: 65720 | AA46: 413400 | AB46: 328600 | AC46: 226840 | AD46: 259700 | AE46: 174900 | AF46: 355100 | AG46: 111300 | AH46: 143100 | AI46: 148400 | AJ46: 492900 | AK46: 75789.56345 | AL46: 285000 | AM46: 116600 | AN46: NO | AO46: NO | AP46: NO | AQ46: NO | AR46: NO | AS46: NO | AT46: -
A47: Industria Colombiana de Motocicletas - Yamaha S.A. | B47: Motocicleta Scooter | C47: 123cc - 134cc | D47: Intervalo de precios 3 | E47: Yamaha | F47: 9817179 | G47: BWS | H47: X MOTARD [YW 125X] | I47: AT 125CC | J47: 7900000 | K47: 0 | L47: 7900000 | M47: 0 | N47: 7900000 | O47: 0 | P47: 7900000 | Q47: 0 | R47: 7900000 | S47: 0 | T47: 7900000 | U47: 0 | V47: 7900000 | W47: 1808100 | X47: 0 | Y47: 72345 | Z47: 10017 | AA47: 554274 | AB47: 1226526 | AC47: 100170 | AD47: 189210 | AE47: 178080 | AF47: 222600 | AG47: 100170 | AH47: 367290 | AI47: 100170 | AJ47: 267120 | AK47: 155820 | AL47: 0 | AM47: 3339 | AN47: NO | AO47: NO | AP47: NO | AQ47: NO | AR47: NO | AS47: NO | AT47: http://www.incolmotos-yamaha.com.co/site/productos/motos/scooter-y-semiautomatica/bws-x/especificaciones-bws-x
A48: Autotecnica Colombiana S.A.S | B48: Motocicleta Scooter | C48: 135cc - 160cc | D48: Intervalo de precios 1 | E48: Kymco | F48: 10117021 | G48: FLY | H48: 150 | I48: AT 150CC | J48: 6000000 | K48: 0.1 | L48: 6210000 | M48: 0.1 | N48: 5400000 | O48: 0.1 | P48: 5400000 | Q48: 0.1 | R48: 5400000 | S48: 0.1 | T48: 5400000 | U48: 0.1 | V48: 5400000 | W48: 2308680 | X48: 137800 | Y48: 1314400 | Z48: 65720 | AA48: 413400 | AB48: 328600 | AC48: 226840 | AD48: 259700 | AE48: 174900 | AF48: 335000 | AG48: 111300 | AH48: 143100 | AI48: 148400 | AJ48: 492900 | AK48: 75789.56345 | AL48: 302100 | AM48: 116600 | AN48: NO | AO48: NO | AP48: NO | AQ48: NO | AR48: NO | AS48: SI | AT48: -
A49: Autotecnica Colombiana S.A.S | B49: Motocicleta Scooter | C49: 275cc - 325cc | D49: Intervalo de precios 1 | E49: Kymco | F49: 10117011 | G49: DOWNTOWN | H49: 300 | I49: AT 300CC | J49: 17000000 | K49: 0.06 | L49: 14946000 | M49: 0.06 | N49: =+$J49*(1-M49) -> 15980000 | O49: 0.06 | P49: =+$J49*(1-O49) -> 15980000 | Q49: 0.06 | R49: =+$J49*(1-Q49) -> 15980000 | S49: 0.06 | T49: =+$J49*(1-S49) -> 15980000 | U49: 0.06 | V49: =+$J49*(1-U49) -> 15980000 | W49: 2862000 | X49: 137800 | Y49: 1314400 | Z49: 65720 | AA49: 413400 | AB49: 328600 | AC49: 226840 | AD49: 259700 | AE49: 174900 | AF49: 355100 | AG49: 111300 | AH49: 143100 | AI49: 148400 | AJ49: 465000 | AK49: 75789.56345 | AL49: 302100 | AM49: 116600 | AN49: SI | AO49: SI | AP49: SI | AQ49: NO | AR49: NO | AS49: SI | AT49: -
A50: Suzuki Motor De Colombia S.A. | B50: Motocicleta Doble Proposito Tipo Enduro | C50: 191cc - 225cc | D50: Intervalo de precios 2 | E50: Suzuki | F50: 8817150 | G50: DRX | H50: 200 | I50: MT 200CC | J50: 13700000 | K50: 0.08 | L50: 11684000 | M50: 0.085 | N50: 12535500 | O50: 0.086 | P50: 12521800 | Q50: 0.087 | R50: 12508100 | S50: 0.089 | T50: 12480700 | U50: 0.09 | V50: 12467000 | W50: 4038502.059 | X50: 150520.106 | Y50: 1 | Z50: 489720 | AA50: 358108.916 | AB50: 766762.766 | AC50: NA | AD50: 231333.234 | AE50: 231333.234 | AF50: 412296.434 | AG50: 118465.6 | AH50: 191224 | AI50: 101372.04 | AJ50: 354464 | AK50: 149248 | AL50: NA | AM50: 61704.72 | AN50: NO | AO50: NO | AP50: NO | AQ50: NO | AR50: NO | AS50: NO | AT50: http://www.suzuki.com.co/sites/default/files/textos/catalogo_drx_.pdf
A51: Autotecnica Colombiana S.A.S | B51: Motocicleta Deportiva y Calle | C51: 191 cc - 220cc | D51: intervalo de precios 3 | E51: Auteco | F51: 317072 | G51: BAJAJ | H51: PULSAR 200 NS FI | I51: MT 200CC | J51: 9000000 | K51: 0.1 | L51: 8100000 | M51: 0.1 | N51: =+$J51*(1-M51) -> 8100000 | O51: 0.1 | P51: =+$J51*(1-O51) -> 8100000 | Q51: 0.1 | R51: =+$J51*(1-Q51) -> 8100000 | S51: 0.1 | T51: =+$J51*(1-S51) -> 8100000 | U51: 0.1 | V51: 8100000 | W51: 3392000 | X51: 408100 | Y51: 1590000 | Z51: 180200 | AA51: 498200 | AB51: 1038800 | AC51: 259700 | AD51: 296800 | AE51: 206700 | AF51: 408100 | AG51: 132500 | AH51: 339200 | AI51: 212000 | AJ51: 561800 | AK51: 137800 | AL51: 344500 | AM51: 137800 | AN51: NO | AO51: SI | AP51: NO | AQ51: NO | AR51: SI | AS51: SI | AT51: http://www.globalbajaj.com/colombia/spanish/marcas/motorcycles/pulsar/pulsar-rs-200/ficha-t%C3%A9cnica/
A52: Autotecnica Colombiana S.A.S | B52: Motocicleta Doble Proposito Tipo Enduro | C52: 226cc - 274cc | D52: Intervalo de precios 2 | E52: Kawasaki | F52: 4517108 | G52: KLX | H52: 250 | I52: MT 250CC | J52: 17600000 | K52: 0.05 | L52: 16720000 | M52: 0.05 | N52: =+$J52*(1-M52) -> 16720000 | O52: 0.05 | P52: =+$J52*(1-O52) -> 16720000 | Q52: 0.05 | R52: =+$J52*(1-Q52) -> 16720000 | S52: 0.05 | T52: =+$J52*(1-S52) -> 16720000 | U52: 0.05 | V52: =+$J52*(1-U52) -> 16720000 | W52: 3922000 | X52: 137800 | Y52: 1335600 | Z52: 65720 | AA52: 413400 | AB52: 328600 | AC52: 226840 | AD52: 259700 | AE52: 174900 | AF52: 355100 | AG52: 111300 | AH52: 143100 | AI52: 148400 | AJ52: 492900 | AK52: 75789.56345 | AL52: 302100 | AM52: 116600 | AN52: NO | AO52: NO | AP52: NO | AQ52: NO | AR52: NO | AS52: SI | AT52: -
A53: Colombiana De Comercio S.A. Siglas Corbeta S.A. y/o Alkosto S.A. | B53: Motocicleta Deportiva y Calle | C53: 191 cc - 220cc | D53: Intervalo de precios 1 | E53: TVS | F53: 29517010 | G53: APACHE 200 | H53: RTR200 | I53: MT 200CC | J53: 7300000 | K53: 0.08 | L53: 6716000 | M53: 0.08 | N53: =+J53*(1-M53) -> 6716000 | O53: 0.08 | P53: =+J53*(1-O53) -> 6716000 | Q53: 0.08 | R53: =+$J$53*(1-Q53) -> 6716000 | S53: 0.08 | T53: =+$J$53*(1-S53) -> 6716000 | U53: 0.08 | V53: =+$J$53*(1-U53) -> 6716000 | W53: 970000 | X53: 45000 | Y53: 125000 | Z53: 60000 | AA53: 370000 | AB53: 300000 | AC53: 200000 | AD53: 95000 | AE53: 75000 | AF53: 40000 | AG53: 15000 | AH53: 190000 | AI53: 70000 | AJ53: 180000 | AK53: 176000 | AL53: 424000 | AM53: 60000 | AN53: NO | AO53: NO | AP53: NO | AQ53: NO | AR53: NO | AS53: SI | AT53: http://www.tvsmotos.com/apache200?gclid=Cj0KCQjwwLHLBRDEARIsAN1A1Q5JhSy_ix19m_FCKCZVl-N_2B0ew9PV2emy1sJJnImyhfSEGodOTFAaAmEsEALw_wcB
A54: Colombiana De Comercio S.A. Siglas Corbeta S.A. y/o Alkosto S.A. | B54: Motocicleta Doble Proposito Tipo Enduro | C54: 100cc - 125cc | D54: Intervalo de precios 1 | E54: AKT | F54: 15917031 | G54: TT | H54: 125 | I54: MT125CC | J54: 4300000 | K54: 0.08 | L54: 3956000 | M54: 0.08 | N54: =+$J54*(1-M54) -> 3956000 | O54: 0.08 | P54: =+$J54*(1-O54) -> 3956000 | Q54: 0.08 | R54: =+$J54*(1-Q54) -> 3956000 | S54: 0.08 | T54: =+$J54*(1-S54) -> 3956000 | U54: 0.08 | V54: =+$J54*(1-U54) -> 3956000 | W54: 850000 | X54: 45000 | Y54: 115000 | Z54: 60000 | AA54: 370000 | AB54: 300000 | AC54: 200000 | AD54: 95000 | AE54: 75000 | AF54: 40000 | AG54: 15000 | AH54: 190000 | AI54: 70000 | AJ54: 180000 | AK54: 176000 | AL54: 424000 | AM54: 60000 | AN54: NO | AO54: NO | AP54: NO | AQ54: NO | AR54: NO | AS54: SI | AT54: http://www.aktmotos.com/motos/enduro/ttr-125
A55: Autotecnica Colombiana S.A.S | B55: Motocicleta Doble Proposito Tipo Turismo | C55: 600cc - 670cc | D55: Intervalo de precios 1 | E55: KAWASAKI | F55: 4517133 | G55: VERSYS [2] | H55: KLE650 | I55: MT 650CC ABS | J55: 40900000 | K55: 0.05 | L55: 38855000 | M55: 0.05 | N55: =$J$55*(1-M55) -> 38855000 | O55: 0.05 | P55: =$J$55*(1-O55) -> 38855000 | Q55: 0.05 | R55: =$J$55*(1-Q55) -> 38855000 | S55: 0.05 | T55: =$J$55*(1-S55) -> 38855000 | U55: 0.05 | V55: =$J$55*(1-U55) -> 38855000 | W55: 6360000 | X55: 424000 | Y55: 1590000 | Z55: 212000 | AA55: 530000 | AB55: 1060000 | AC55: 318000 | AD55: 318000 | AE55: 265000 | AF55: 424000 | AG55: 190800 | AH55: 381600 | AI55: 265000 | AJ55: 636000 | AK55: 212000 | AL55: 371000 | AM55: 159000 | AN55: NO | AO55: SI | AP55: SI | AQ55: NO | AR55: SI | AS55: SI | AT55: http://www.kawasaki-la.com/la-es/productos/2017-versys-650-abs/especificaciones
A56: Autotecnica Colombiana S.A.S | B56: Motocicleta Scooter | C56: 123cc - 134cc | D56: Intervalo de precios 2 | E56: KYMCO | F56: 10117023 | G56: TWIST | H56: 125 | I56: AT 125CC | J56: 4300000 | K56: 0.1 | L56: 4410000 | M56: 0.1 | N56: =$J$56*(1-M56) -> 3870000 | O56: 0.1 | P56: =$J$56*(1-O56) -> 3870000 | Q56: 0.1 | R56: =$J$56*(1-Q56) -> 3870000 | S56: 0.1 | T56: =$J$56*(1-S56) -> 3870000 | U56: 0.1 | V56: =$J$56*(1-U56) -> 3870000 | W56: 3710000 | X56: 424000 | Y56: 1399200 | Z56: 212000 | AA56: 530000 | AB56: 1060000 | AC56: 318000 | AD56: 318000 | AE56: 265000 | AF56: 424000 | AG56: 190800 | AH56: 381600 | AI56: 265000 | AJ56: 636000 | AK56: 212000 | AL56: 371000 | AM56: 159000 | AN56: NO | AO56: NO | AP56: NO | AQ56: NO | AR56: NO | AS56: NO | AT56: https://kymco.com.co/motocicletas/twist
A57: Fanalca | B57: Motocicleta Scooter | C57: 90cc - 123cc | D57: Intervalo de precio 1 | E57: Honda | F57: 3417179 | G57: DIO | H57: 110 | I57: AT 110CC | J57: 4200000 | K57: 0 | L57: 4200000 | M57: 0.04 | N57: =$J$57*(1-M57) -> 4032000 | O57: 0.06 | P57: =$J$57*(1-O57) -> 3948000 | Q57: 0.08 | R57: =$J$57*(1-Q57) -> 3864000 | S57: 0.1 | T57: =$J$57*(1-S57) -> 3780000 | U57: 0.12 | V57: =$J$57*(1-U57) -> 3696000 | W57: 2142018 | X57: 116600 | Y57: 80000 | Z57: 15000 | AA57: 442900 | AB57: 1030000 | AC57: 360000 | AD57: 154500 | AE57: 154500 | AF57: 166600 | AG57: 83300 | AH57: 293550 | AI57: 116600 | AJ57: 154500 | AK57: 92700 | AL57: 210000 | AM57: 72100 | AN57: NO | AO57: NO | AP57: NO | AQ57: SI | AR57: NO | AS57: NO
A58: Fanalca | B58: Motocicleta Doble Proposito Tipo Turismo | C58: 750cc - 850cc | D58: Intervalo de precios 3 | E58: Honda | F58: 3417176 | G58: VFR [2] | H58: 800X | I58: MT 800CC | J58: 49000000 | K58: 0 | L58: 49000000 | M58: 0.02 | N58: =$J$58*(1-M58) -> 48020000 | O58: 0.02 | P58: =$J$58*(1-O58) -> 48020000 | Q58: 0.025 | R58: =$J$58*(1-Q58) -> 47775000 | S58: 0.03 | T58: =$J$58*(1-S58) -> 47530000 | U58: 0.04 | V58: =$J$58*(1-U58) -> 47040000 | W58: 8637787 | X58: 300000 | Y58: 80000 | Z58: 15000 | AA58: 442900 | AB58: 1030000 | AC58: 360000 | AD58: 154500 | AE58: 154500 | AF58: 166600 | AG58: 83300 | AH58: 293550 | AI58: 116600 | AJ58: 154500 | AK58: 92700 | AL58: 210000 | AM58: 150000 | AN58: SI | AO58: SI | AP58: SI | AQ58: NO | AR58: SI | AS58: SI
A59: Fanalca | B59: Motocicleta Doble Proposito Tipo Turismo | C59: 671cc - 749cc | D59: Intervalo de precios 1 | E59: Honda | F59: 3417188 | G59: NC [2] | H59: 750X D | I59: TP 750CC | J59: 43000000 | K59: 0 | L59: 43000000 | M59: 0.02 | N59: =$J$59*(1-M59) -> 42140000 | O59: 0.02 | P59: =$J$59*(1-O59) -> 42140000 | Q59: 0.025 | R59: =$J$59*(1-Q59) -> 41925000 | S59: 0.03 | T59: =$J$59*(1-S59) -> 41710000 | U59: 0.04 | V59: =$J$59*(1-U59) -> 41280000 | W59: 8637787 | X59: 300000 | Y59: 100000 | Z59: 15000 | AA59: 442900 | AB59: 1030000 | AC59: 360000 | AD59: 154500 | AE59: 154500 | AF59: 166600 | AG59: 83300 | AH59: 293550 | AI59: 116600 | AJ59: 195700 | AK59: 92700 | AL59: 210000 | AM59: 150000 | AN59: SI | AO59: SI | AP59: SI | AQ59: NO | AR59: SI | AS59: SI
A60: Fanalca | B60: Motocicleta Doble Proposito Tipo Enduro | C60: 126cc - 165cc | D60: Intervalo de precio 1 | E60: Honda | F60: 3417167 | G60: XR | H60: 150L | I60: MT 150CC | J60: 7300000 | K60: 0 | L60: 7300000 | M60: 0.04 | N60: =$J$60*(1-M60) -> 7008000 | O60: 0.06 | P60: =$J$60*(1-O60) -> 6862000 | Q60: 0.08 | R60: =$J$60*(1-Q60) -> 6716000 | S60: 0.1 | T60: =$J$60*(1-S60) -> 6570000 | U60: 0.12 | V60: =$J$60*(1-U60) -> 6424000 | W60: 3460658 | X60: 300000 | Y60: 100000 | Z60: 15000 | AA60: 442900 | AB60: 1030000 | AC60: 360000 | AD60: 154500 | AE60: 154500 | AF60: 166600 | AG60: 83300 | AH60: 293550 | AI60: 116600 | AJ60: 195700 | AK60: 92700 | AL60: 210000 | AM60: 150000 | AN60: NO | AO60: NO | AP60: NO | AQ60: NO | AR60: NO | AS60: NO
A61: Fanalca | B61: Cuatrimotos | C61: 426cc - 500cc | D61: Intervalo de precio 2 | E61: Honda | F61: 3419002 | G61: TRX | H61: 500 F | I61: AT 475 CC 4X4 | J61: 29300000 | K61: 0 | L61: 29000000 | M61: 0.02 | N61: =$J$61*(1-M61) -> 28714000 | O61: 0.02 | P61: =$J$61*(1-O61) -> 28714000 | Q61: 0.025 | R61: =$J$61*(1-Q61) -> 28567500 | S61: 0.03 | T61: =$J$61*(1-S61) -> 28421000 | U61: 0.04 | V61: =$J$61*(1-U61) -> 28128000 | W61: 3699172.724 | X61: 300000 | Y61: 100000 | Z61: 15000 | AA61: 442900 | AB61: 1030000 | AC61: 360000 | AD61: 154500 | AE61: 154500 | AF61: 166600 | AG61: 83300 | AH61: 293550 | AI61: 116600 | AJ61: 195700 | AK61: 92700 | AL61: 210000 | AM61: 150000 | AN61: NO | AO61: SI | AP61: NO | AQ61: NO | AR61: NO | AS61: NO
A62: Suzuki Motor De Colombia S.A. | B62: Motocicleta Deportiva y Calle | C62: 221cc - 274cc | D62: Intervalo de precios 2 | E62: Suzuki | F62: 8817161 | G62: DL | H62: 250 [V STROM] [2] | I62: MT 250CC | J62: 18500000 | K62: 0.001 | L62: 18481500 | M62: 0.001 | N62: =+$J62*(1-M62) -> 18481500 | O62: 0.001 | P62: =+$J62*(1-O62) -> 18481500 | Q62: 0.001 | R62: =+$J62*(1-Q62) -> 18481500 | S62: 0.001 | T62: =+$J62*(1-S62) -> 18481500 | U62: 0.03 | V62: =+$J62*(1-U62) -> 17945000 | W62: 4583867 | X62: 298259 | Y62: 587000 | Z62: 420000 | AA62: 320775 | AB62: 657601 | AC62: 0 | AD62: 198399 | AE62: 198399 | AF62: 353599 | AG62: 101600 | AH62: 164000 | AI62: 86940 | AJ62: 304000 | AK62: 128000 | AL62: 282283 | AM62: 140155 | AN62: SI | AO62: SI | AP62: SI | AQ62: NO | AR62: NO | AS62: SI | AT62: http://www.suzuki.com.co/sites/default/files/textos/catalogo_inazuma.pdf
A63: Colombiana De Comercio S.A. Siglas Corbeta S.A. y/o Alkosto S.A. | B63: Motocicleta Doble Proposito Tipo Enduro | C63: 191cc - 220cc | D63: Intervalo de precios 1 | E63: AKT | F63: 15917046 | G63: TT | H63: 200 | I63: MT 200CC | J63: 5000000 | K63: 0.08 | L63: 4600000 | M63: 0.08 | N63: =+$J$63*(1-M63) -> 4600000 | O63: 0.08 | P63: =+$J$63*(1-O63) -> 4600000 | Q63: 0.08 | R63: =+$J$63*(1-Q63) -> 4600000 | S63: 0.08 | T63: =+$J$63*(1-S63) -> 4600000 | U63: 0.08 | V63: =+$J$63*(1-U63) -> 4600000 | W63: 970000 | X63: 45000 | Y63: 120000 | Z63: 60000 | AA63: 370000 | AB63: 300000 | AC63: 200000 | AD63: 95000 | AE63: 75000 | AF63: 40000 | AG63: 15000 | AH63: 190000 | AI63: 70000 | AJ63: 180000 | AK63: 176000 | AL63: 42400 | AM63: 60000 | AN63: NO | AO63: NO | AP63: NO | AQ63: NO | AR63: SI | AS63: SI | AT63: http://www.aktmotos.com/motos/enduro/ttr-200
A64: Fanalca | B64: Motocicleta Doble Proposito Tipo Enduro | C64: 325cc - 599cc | D64: Intervalo de precios 1 | E64: Honda | F64: 3417170 | G64: CB | H64: 500X | I64: MT 500CC | J64: 32300000 | K64: 0 | L64: 32300000 | M64: 0.04 | N64: =$J$64*(1-M64) -> 31008000 | O64: 0.06 | P64: =$J$64*(1-O64) -> 30362000 | Q64: 0.08 | R64: =$J$64*(1-Q64) -> 29716000 | S64: 0.1 | T64: =$J$64*(1-S64) -> 29070000 | U64: 0.12 | V64: =$J$64*(1-U64) -> 28424000 | W64: 6266859 | X64: 123600 | Y64: 100000 | Z64: 15000 | AA64: 442900 | AB64: 1030000 | AC64: 600000 | AD64: 154500 | AE64: 154500 | AF64: 166600 | AG64: 83300 | AH64: 293550 | AI64: 116600 | AJ64: 195700 | AK64: 92700 | AL64: 210000 | AM64: 72100 | AN64: SI | AO64: SI | AP64: SI | AQ64: NO | AR64: SI | AS64: SI
A65: Autotecnica Colombiana S.A.S | B65: Motocicleta Deportiva y Calle | C65: 275cc - 324cc | D65: Intervalo de precio 1 | E65: Kawasaki | F65: 4517144 | G65: VERSYS X | H65: KLE 300 | I65: MT 300CC | J65: 19500000 | K65: 0 | L65: 19000000 | M65: 0 | N65: 19000000 | O65: 0.02 | P65: 18620000 | Q65: 0.03 | R65: 18430000 | S65: 0.04 | T65: 18240000 | U65: 0.05 | V65: 18050000 | W65: 6360000 | X65: 500000 | Y65: 1590000 | Z65: 212000 | AA65: 530000 | AB65: 1060000 | AC65: 318000 | AD65: 318000 | AE65: 265000 | AF65: 424000 | AG65: 190800 | AH65: 381600 | AI65: 265000 | AJ65: 636000 | AK65: 212000 | AL65: 371000 | AM65: 200000 | AO65: SI | AR65: SI | AS65: SI | AT65: https://www.kawasaki.com.co/motos/versys-x
A66: Autotecnica Colombiana S.A.S | B66: Motocicleta Deportiva y Calle | C66: 135cc - 165cc | D66: Intervalo de precios 2 | E66: Auteco | F66: 317068 | G66: BAJAJ | H66: PULSAR AS 150 | I66: MT 150CC | J66: 5600000 | K66: 0.1 | L66: 5040000 | M66: 0.1 | N66: =+$J66*(1-M66) -> 5040000 | O66: 0.1 | P66: =+$J66*(1-O66) -> 5040000 | Q66: 0.1 | R66: =+$J66*(1-Q66) -> 5040000 | S66: 0.1 | T66: =+$J66*(1-S66) -> 5040000 | U66: 0.1 | V66: =+$J66*(1-U66) -> 5040000 | W66: 1515800 | X66: 137800 | Y66: 1314400 | Z66: 65720 | AA66: 413400 | AB66: 328600 | AC66: 226840 | AD66: 259700 | AE66: 174900 | AF66: 355100 | AG66: 111300 | AH66: 143100 | AI66: 148400 | AJ66: 492900 | AK66: 75789.56345 | AL66: 302100 | AM66: 116600 | AN66: NO | AO66: NO | AP66: NO | AQ66: NO | AR66: NO | AS66: NO | AT66: -

Sheet ActFasecolda (hidden)
A1: Directorio | B1: C:\Users\juan.patarroyo\OneDrive - Colombia Compra Eficiente\Documentos\1. ADMON\2- LYDA\Actualizacion Fasecolda\6- Junio\Guia_Excel_274.xlsx
D2: 1
